Cogmind - Beta 16.1 *** ADVENTURER MODE // 2026.02.16 @ 21:24:24 Player: Zable Result: Destroyed by JY-7QY(j) with Overtuned Pulse Rifle Performance ------------- Evolutions (0) 0 Regions Visited (3) 600 Robots Destroyed (16) 80 Value Destroyed (516) 516 Prototype IDs (6) 120 Alien Tech Used (0) 0 Bonus (800) 800 TOTAL SCORE: 2116 Bonus ------- Registered with UFD 300 Met Optimus in HQ 500 Cogmind --------- Core Integrity 0/250 Matter 188/300 Energy 98/100 System Corruption 1% Temperature Cool (24) Movement Core (50) Location -9/Scraptown Parts ------- > --- POWER (1) -------- (None) > --- PROPULSION (2) --- (None) > --- UTILITY (2) ------ (None) > --- WEAPON (2) ------- (None) > --- INVENTORY (5) ---- Small Storage Unit Subdweller Optics Sensor Array Signal Interpreter Magnetic Acceleration Cannon Peak State ------------ > --- POWER ------------ Light Ion Engine > --- PROPULSION ------- Light Treads Wheel > --- UTILITY ---------- Small Storage Unit Seismic Detector > --- WEAPON ----------- High-powered Shock Rifle Magnetic Acceleration Cannon > --- INVENTORY -------- Light Treads Compact Wheel Small Storage Unit Subdweller Optics Sensor Array Assault Rifle Light Assault Rifle CPS Tube [Rating: 16] Favorites ----------- Power Light Ion Engine Engine Light Ion Engine Propulsion Wheel Treads Light Treads Wheel Wheel Utility Small Storage Unit Device Seismic Detector Storage Small Storage Unit Weapon Magnetic Acceleration Cannon Energy Gun High-powered Shock Rifle Ballistic Gun Light Assault Rifle Ballistic Cannon Magnetic Acceleration Cannon Launcher Proton Missile Launcher Piercing Weapon Spear Build | -11 -10 -10 -9 ------- Run | Yrd Mat Sub Scr Slots Evolved . | . . . . Power . | . . . . Propulsion . | . . . . Utility . | . . . . Weapon . | . . . . Parts Attached 17 | 8 1 . 8 Power 3 | 2 . . 1 Engine 3 | 2 . . 1 Core . | . . . . Reactor . | . . . . Propulsion 3 | 2 . . 1 Treads 1 | 1 . . . Leg . | . . . . Wheel 2 | 1 . . 1 Hover . | . . . . Flight . | . . . . Utility 3 | 2 1 . . Device 2 | 1 1 . . Storage 1 | 1 . . . Processor . | . . . . Hackware . | . . . . Protection . | . . . . Artifact . | . . . . Weapon 8 | 2 . . 6 Energy Gun 3 | 1 . . 2 Energy Cannon . | . . . . Ballistic Gun 1 | 1 . . . Ballistic Cannon 1 | . . . 1 Launcher 2 | . . . 2 Special Weapon . | . . . . Impact Weapon . | . . . . Slashing Weapon . | . . . . Piercing Weapon 1 | . . . 1 Special Melee Weapon . | . . . . Unidentified Prototypes . | . . . . Parts Lost 7 | . . . 7 Power 1 | . . . 1 Propulsion 3 | . . . 3 Utility . | . . . . Weapon 3 | . . . 3 Highest Loss Streak 7 | . . . 7 To Critical Strikes . | . . . . Average Backups 7 | 4 6 6 7 Power . | . . . . Propulsion 2 | 2 3 3 2 Utility 2 | . 1 2 2 Weapon 1 | . 1 1 1 Tool/Special . | . . . . Unused Backups 8 | . 2 . 6 Power . | . . . . Propulsion 2 | . 1 . 1 Utility 4 | . 1 . 3 Weapon 1 | . . . 1 Tool/Special 1 | . . . 1 Average Slot Usage (%) 99 | . 97 100 99 Engine 13 | . 14 14 13 Treads 13 | . 14 14 13 Wheel 14 | . 14 14 14 Device 13 | . 12 14 14 Storage 13 | . 12 14 14 Energy Gun 13 | . 14 14 13 Ballistic Gun 3 | . 14 14 1 Ballistic Cannon 10 | . . . 12 Peak Build Rating 16 | 7 7 7 16 Average Rating 12 | 5 6 7 14 On Entrance 5 | . 7 7 7 Avg Prop Armor Cover (%) 11 | 14 13 13 11 Naked Turns 6 | . . . 6 Heaviest Build 22 | 11 11 11 22 Greatest Support 26 | 20 10 10 26 Greatest Overweight (x) 5 | 1 1 1 5 Average Overweight (x) 1 | . . 1 1 Largest Inventory Capacity 8 | 8 8 8 8 Average Capacity 7 | 7 7 8 7 Most Carried 8 | 6 8 7 8 Average Carried 7 | 4 6 6 7 Final Capacity 8 | 8 8 8 5 Final Carried 7 | 6 6 7 5 Class Distribution -------------------- 100% | Mutant Dominant Class ---------------- Mutant | -10/Materials Mutant | -10/Subcaves Mutant | -9/Scraptown Resources | -11 -10 -10 -9 ----------- Run | Yrd Mat Sub Scr Matter Collected 423 | 246 16 59 102 Remotely . | . . . . Salvage Created 676 | 65 . . 611 Parts 42 | 9 . . 33 Haulers Intercepted . | . . . . Recyclers Shooed 1 | 1 . . . Parts Field Recycled . | . . . . Retrieved Matter . | . . . . Parts Self-Destructed . | . . . . Prevented . | . . . . Parts Restored . | . . . . Kills | -11 -10 -10 -9 ------- Run | Yrd Mat Sub Scr Combat Hostiles Destroyed 12 | . . . 12 Guns 2 | . . . 2 Cannons 6 | . . . 6 AOE 4 | . . . 4 Classes Destroyed 6 | 1 . . 5 Tunneler 4 | 4 . . . Bolteater 1 | . . . 1 Federalist 2 | . . . 2 Explorer 1 | . . . 1 Guru 2 | . . . 2 Scrapper 6 | . . . 6 Best Kill Streak 6 | 3 . . 6 Combat Bots Only 6 | . . . 6 Max Kills in Single Turn 3 | 1 . . 3 Gunslinging . | . . . . Exploded 3 | . . . 3 Melee . | . . . . Uniques/NPCs Destroyed . | . . . . Combat | -11 -10 -10 -9 -------- Run | Yrd Mat Sub Scr Hostile Shots Fired 79 | . . 8 71 Missed 23 | . . 2 21 Hits 56 | . . 6 50 Melee 2 | . . . 2 Projectile 54 | . . 6 48 Critical Strikes 4 | . . . 4 Damage Taken 800 | . . 91 709 Core 256 | . . 29 227 Absorbed by Shields . | . . . . Ignored by Resistances 229 | . . 26 203 Core Remaining (%) 100 | 100 . . . Volleys Fired 31 | 8 . 3 20 Largest 2 | 2 . 2 2 Hottest 124 | 60 . 60 124 Shots Fired 56 | 16 . 6 34 Gun 35 | 16 . 6 13 Cannon 17 | . . . 17 Launcher 4 | . . . 4 Special . | . . . . Kinetic 28 | 8 . 3 17 Thermal 11 | 8 . 3 . Explosive 3 | . . . 3 Electromagnetic 14 | . . . 14 Robot Hit Streak 13 | 9 . 12 13 Robot Miss Streak 3 | 1 . 1 3 Penetration Max . | . . . . Secondary Targets . | . . . . Shots Hit Robots 44 | 12 . 5 27 Core Hits 24 | 4 . 2 18 Critical Kills . | . . . . Critical Parts Destroyed . | . . . . Critical Strikes 1 | . . . 1 Corrupt 1 | . . . 1 Melee Attacks . | . . . . Impact . | . . . . Slashing . | . . . . Piercing . | . . . . Sneak Attacks . | . . . . Combat Hostiles . | . . . . Follow-up Attacks . | . . . . Damage Inflicted 1153 | 123 . 44 986 Guns 345 | 123 . 44 178 Cannons 365 | . . . 365 Explosions 443 | . . . 443 Melee . | . . . . Ramming . | . . . . Kinetic 422 | 45 . 12 365 Thermal 110 | 78 . 32 . Explosive 443 | . . . 443 Electromagnetic 178 | . . . 178 Impact . | . . . . Slashing . | . . . . Piercing . | . . . . Highest Corruption 1 | . . . 1 Average Corruption 1 | . . . 1 Corruption Purged . | . . . . Corruption Blocked . | . . . . Effects 2 | . . . 2 Heat Flow Errors 1 | . . . 1 Alerts 1 | . . . 1 Overload Shots . | . . . . Overflow Damage . | . . . . Projectiles . | . . . . Explosions . | . . . . Melee . | . . . . Knockbacks 2 | . . . 2 Impact . | . . . . Kinetic 2 | . . . 2 Secondary . | . . . . Self-Inflicted Damage 27 | . . . 27 Shots 2 | . . . 2 Rammed . | . . . . Targets Rammed . | . . . . Kicked . | . . . . Crushed . | . . . . Highest Temperature 301 | 40 . . 301 Average Temperature 86 | 22 . . 97 Received Heat Transfer 628 | . . 36 592 Effects 1 | . . . 1 Energy Bleed 1 | . . . 1 Siege Activations . | . . . . Martial Activations . | . . . . Shielding Activations . | . . . . Robots Disrupted . | . . . . Combat Hostiles . | . . . . Robots Corrupted . | . . . . Combat Hostiles . | . . . . Parts Fried . | . . . . Impact Corruptions . | . . . . Robots Melted . | . . . . Combat Hostiles . | . . . . Parts Melted 1 | . . . 1 Heat Transferred 250 | 175 . 75 . Parts Sabotaged . | . . . . Parts Stolen . | . . . . Parts Stripped . | . . . . Power Chain Reactions 2 | . . . 2 Alert | -11 -10 -10 -9 ------- Run | Yrd Mat Sub Scr Maximum Alert Level . | . . . . Low Security (%) 100 | 100 100 . . Level 1 . | . . . . Level 2 . | . . . . Level 3 . | . . . . Level 4 . | . . . . Level 5 . | . . . . High Security . | . . . . Max Security . | . . . . Peak Influence 15 | 15 2 . . Initial 2 | . 2 . . Average 1 | 2 . . . Influence Increases 20 | 20 . . . Destroy 0b10 Robot/NC 20 | 20 . . . Influence Decreases 20 | 15 5 . . Entered New Map 3 | . 3 . . Time Decay 17 | 15 2 . . Squads Dispatched . | . . . . Investigation . | . . . . Extermination . | . . . . Reinforcement . | . . . . Assault . | . . . . Garrison . | . . . . Intercept . | . . . . Searches Triggered . | . . . . Construction Impeded . | . . . . Haulers Reinforced . | . . . . Active Scanning Responses . | . . . . Cargo Convoy Interrupts . | . . . . Stealth | -11 -10 -10 -9 --------- Run | Yrd Mat Sub Scr Distress Signals 1 | . 1 . . Communications Jammed . | . . . . Distress Signals . | . . . . Times Spotted 24 | . 2 3 19 Peak Tracking Total 6 | . 2 2 6 Tactical Retreats 2 | . . . 2 Traps | -11 -10 -10 -9 ------- Run | Yrd Mat Sub Scr Traps Triggered . | . . . . Indirectly . | . . . . Trap Hack Attempts . | . . . . Triggered . | . . . . Disarmed . | . . . . Reprogrammed . | . . . . Reused . | . . . . Traps Extracted . | . . . . Installed . | . . . . Triggered . | . . . . Machines | -11 -10 -10 -9 ---------- Run | Yrd Mat Sub Scr Machines Disabled 1 | . . . 1 Max in Single Turn 1 | . . . 1 Machines Repaired . | . . . . Machines Dismantled . | . . . . Machines Sabotaged . | . . . . Overloaded Fab Kills . | . . . . Hacking | -11 -10 -10 -9 --------- Run | Yrd Mat Sub Scr Machines Accessed 9 | . . . 9 Terminals . | . . . . Fabricators . | . . . . Repair Stations . | . . . . Recycling Units . | . . . . Scanalyzers . | . . . . Garrison Access . | . . . . Total Hacks 56 | . . . 56 Successful 56 | . . . 56 Failed . | . . . . Catastrophic . | . . . . Database Lockouts . | . . . . Manual 1 | . . . 1 Terminals . | . . . . Fabricators . | . . . . Repair Stations . | . . . . Recycling Units . | . . . . Scanalyzers . | . . . . Garrison Access . | . . . . Terminal Hacks 56 | . . . 56 Record 55 | . . . 55 Proto ID Catalog 1 | . . . 1 Fabricator Hacks . | . . . . Repair Station Hacks . | . . . . Recycling Unit Hacks . | . . . . Scanalyzer . | . . . . Garrison Access Hacks . | . . . . Unauthorized Hacks . | . . . . Terminals . | . . . . Fabricators . | . . . . Repair Stations . | . . . . Recycling Units . | . . . . Scanalyzers . | . . . . Garrison Access . | . . . . Data Cores Recovered . | . . . . Used . | . . . . Hacking Detections . | . . . . Full Trace Events . | . . . . Feedback Events . | . . . . Feedback Blocked . | . . . . Robot Schematics Acquired . | . . . . Robots Built . | . . . . Authchips . | . . . . Time . | . . . . Total Robot Build Rating . | . . . . Part Schematics Acquired . | . . . . Parts Built . | . . . . Authchips . | . . . . Time . | . . . . Total Part Build Rating . | . . . . Part Studies Acquired . | . . . . Parts Repaired . | . . . . Time . | . . . . Parts Recycled . | . . . . Recycled Matter . | . . . . Retrieved Matter . | . . . . Retrieved Components . | . . . . Parts Scanalyzed . | . . . . Part Schematics Acquired . | . . . . Parts Damaged . | . . . . Bothacking | -11 -10 -10 -9 ------------ Run | Yrd Mat Sub Scr Used RIF Installer . | . . . . Robots Hacked . | . . . . Non-combat . | . . . . Combat . | . . . . Robot Hacks Applied . | . . . . Relay Couplers Released . | . . . . Fabnet Peak Effective % . | . . . . Robots Rewired . | . . . . Allies Hacked . | . . . . Hacks Repelled . | . . . . Allies | -11 -10 -10 -9 -------- Run | Yrd Mat Sub Scr Total Allies . | . . . . Largest Group . | . . . . Highest-Rated Group . | . . . . Highest-Rated Ally . | . . . . Total Orders . | . . . . Ally Attacks . | . . . . Total Damage . | . . . . Kills . | . . . . Allies Corrupted . | . . . . Allies Melted 3 | . . . 3 Intel | -11 -10 -10 -9 ------- Run | Yrd Mat Sub Scr Active Infowar (turns) 2407 | 10 112 249 2036 Sensors 1 | . 1 . . Seismic 2406 | 10 111 249 2036 Robot Analysis Total . | . . . . Derelict Logs Recovered 1 | . . . 1 Drone Launches . | . . . . Drone Recoveries . | . . . . Exploration | -11 -10 -10 -9 ------------- Run | Yrd Mat Sub Scr Turns Passed 2495 | 87 117 249 2042 Spaces Moved 1991 | 53 91 123 1724 Core 16 | 3 . . 13 Treads 4 | 3 . . 1 Legs . | . . . . Wheels 1971 | 47 91 123 1710 Hover . | . . . . Flight . | . . . . Fastest Speed 50 | 50 80 95 50 Average Speed 106 | 87 94 95 108 Slowest Speed 300 | 160 95 95 300 Overloaded Moves . | . . . . Propulsion Burnouts . | . . . . Robots Hopped . | . . . . Potential Cave-ins . | . . . . Cave-ins Triggered . | . . . . Exploration Rate (%) 29 | 4 14 18 83 Regions Visited 3 Branch Regions 2 Pre-discovered Areas 4 | . . . 4 Known Exits Taken . | . . . . Unknown Exits Taken 3 | 1 1 1 . Scrap Searched 3 | . . . 3 Spaces Dug . | . . . . Terrain Destroyed 28 | . . . 28 Melee . | . . . . Projectile 1 | . . . 1 AOE 27 | . . . 27 Terrain Rammed . | . . . . Walls Destroyed . | . . . . Machines Disabled . | . . . . Actions | -11 -10 -10 -9 --------- Run | Yrd Mat Sub Scr Total 2312 | 74 124 249 1865 Wait 236 | . 18 123 95 Move 1988 | 52 90 122 1724 Hop . | . . . . Pick Up 17 | 6 5 1 5 Fast Attach 16 | 7 2 . 7 Attach 2 | . 1 . 1 Detach 4 | . 1 . 3 Swap 3 | 1 . . 2 Drop 15 | . 7 . 8 Fire 31 | 8 . 3 20 Melee . | . . . . Ram . | . . . . Kick . | . . . . Crush . | . . . . Escape Stasis . | . . . . Rewire . | . . . . Trap . | . . . . Miscellaneous . | . . . . Route ------- -11/Scrapyard -10/Materials -10/Subcaves -9/Scraptown (discovered 2 exits: *Fac x2) History --------- Turn | Location | Event 27 | -11/Scrapyard | Discovered new exit (range 14) 88 | -11/Scrapyard | Entered Materials 89 | -10/Materials | Met a group of wandering Federalists 200 | -10/Materials | Discovered new exit (range 7) 205 | -10/Materials | Entered Subcaves 206 | -10/Subcaves | Continued accompanying wandering Federalists (3) 301 | -10/Subcaves | Build established: Mutant 408 | -10/Subcaves | Wandering Federalist uncovered a shortcut to Scraptown 454 | -10/Subcaves | Entered Scraptown 1018 | -9/Scraptown | Scanned Subdweller tech in exchange for log data 1022 | -9/Scraptown | Learned location of Zion (-6) 1036 | -9/Scraptown | Discovered new exit (range 11) 1128 | -9/Scraptown | Visited Cyclists 1160 | -9/Scraptown | Visited Symbiants 1368 | -9/Scraptown | Visited TADAMA 1404 | -9/Scraptown | Heard Great Nut preacher, LISTEN AND RECITE! 1405 | -9/Scraptown | Visited Cave Peace 1452 | -9/Scraptown | Visited UFD Registry 1452 | -9/Scraptown | Registered with UFD as "Softbank" 1461 | -9/Scraptown | Visited Red Mages 1544 | -9/Scraptown | Entered Cyclist Reading Room 1549 | -9/Scraptown | Learned location of Exiles (-9) 2039 | -9/Scraptown | Visited Science Guys 2097 | -9/Scraptown | Visited LU-1G1's Boring Crew 2122 | -9/Scraptown | Visited Derelict Rescue Squad 2131 | -9/Scraptown | Found DRS Beacon 2154 | -9/Scraptown | Received an X-ray algorithm 2178 | -9/Scraptown | Met Optimus 2178 | -9/Scraptown | Accepted into 0bPrime 2179 | -9/Scraptown | Ran an X-ray algorithm 2206 | -9/Scraptown | Visited DA-N13 Charitable Foundation 2212 | -9/Scraptown | Found DCF Scrap (31 items) 2336 | -9/Scraptown | Visited Scrapoid Pod Storage 2340 | -9/Scraptown | Civil war broke out across Scraptown 2388 | -9/Scraptown | Lost 3 allies 2414 | -9/Scraptown | Identified exit to Factory 2455 | -9/Scraptown | Visited Junk Repository 2480 | -9/Scraptown | Core integrity fell below 50% 2490 | -9/Scraptown | Released all parts (4) 2493 | -9/Scraptown | Core integrity fell below 20% 2496 | -9/Scraptown | Destroyed by JY-7QY(j) with Overtuned Pulse Rifle Last Messages --------------- 02486_ JY-7QY(j) cannibalizes Ion Engine to repair Lgt. Deuterium Engine. 02487_ 5F-HWU(j) heat damages core (-7). 02488_ 5F-HWU(j) overheating. 02490_ JY-7QY(j) heat short circuits Ovr. Titanium Leg. 02490_ 5F-HWU(j) overheating. 02490_ Released Seismic Detector. 02490_ Released Sml. Storage Unit. 02490_ Released Lgt. Angular Momentum Engine. 02490_ Released Spear. 02491_ Dropped CPS Tube. 02491_ 5F-HWU(j) overheating. 02492_ 5F-HWU(j) heat damages Ovr. Titanium Leg, Scrap Suit, Broken Mak. Microdissipator Network, Lgt. Deuterium Engine. 02492_ Acquired Sensor Array. 02492_ 5F-HWU(j) overheating. 02493_ 5F-HWU(j) suffers critical hit (Burn). 02493_ 5F-HWU(j) overheating. 02495_ Critical hit (Burn: +50). 02495_ 5F-HWU(j) overheating. 02496_ 5F-HWU(j) heat damages Ovr. Pulse Rifle. [Achievement: Deductive Reasoning] Map ----- +----------------------------------------------------+ | #######???????##### ########### ########### ##### | | #???????#"""" """"""""""" """"""""""" """"" | | #???????#" | | #???????#" | | #???????#" | | #???????#" | | #????####" | | #????"""" """""""""""""""""""""""""""" | | #????"""" """""""""""""""""""""""""""" | | #????"""" ""###### ################"" | | #????"""" ""# ##????????#"" | | #????"""" ""# X"#????????#"" | | ###?#"""" ""# "" "" ##????????#"" | | ""#"#"""" ""# "" "" X"#??????###"" | | """"#"""" ""# " " ######### #""! | | ""#######" "" "" =[ | | ###?????#" "" "" !% | | #########" ""# " "* ######### #""! | | ""# "" " ""#??????###"[% | | ""# "" "" ##????????#" [ | | ""# X"#????????#" | | %= *%! ""# ##????????#" | | ! !%!==""###### ################" | | =!* " """""""""""""" """ """""" | | * =[%!!% """"""" """" | | !*%!!%=%@%! j | | ! % =%!![!= = | | %= = =**! ! = | | #""""# =%[%!%!% j % [ =* | | #????#" % %=%[ j ! [ !%! | | #????#" """ " *!! = %= "" " "" | | ### ####????####### ######### ### #"## | | #?# #???????????? ??????#!* # | | #?# #???????????""! ?????#! | # # | | #?# #???????????"&%? ??????#&/ #"! !" | | #?# #???????????""?????????# ! ["##"! !" | | #?# #??????????????????????# !! # #" " | | #?# #??????????????????????###### ####?#"! !" | | #?# #????????????????????????????##????#"! !" | | #?# #??????????????????????????????????####X # | | #?# #?????????????????????????????????????#" " | | ??# #?????????????????????????????????????? !" | | ??# #??????????????????????????????????????##"## | | ### #????????????????????????????????????????"#? | | """ #????????????????????????????????????????#?? | | """ #??????????????????????????????????????????? | | "" #??????????????????????????????????????????? | | #??????????????????????????????????????????? | | " " #??????????????????????????????????????????? | | """ #??????????????????????????????????????????? | +----------------------------------------------------+ Best States ------------- Heat Dissipation 25 Energy Generation 18 Energy Capacity 250 Matter Stores 300 Matter Capacity 300 Sight Range 16 Terrain Scan Density 10 Resistance: KI 20 Resistance: TH 20 Resistance: EX 20 Resistance: EM 20 Resistance: I 20 Resistance: S 20 Resistance: P 20 Evasion (%) 44 Recoil Reduction 1 Offensive Hacking 10 Item Schematics ----------------- None Robot Schematics ------------------ None Fabricated ------------ Nothing Repaired ---------- Nothing Studied --------- None Alien Tech Used ----------------- None Achievements -------------- Bob, First Of His Name Civilization 2243 Deductive Reasoning Link The Feds Strength In Numbers Challenges ------------ None Game ------ Seed VariableMasterFemtoactuators Manual? 0 Play Time 00:41:24 Cumulative 26.4 hours Start 2026.02.16 @ 20:28:51 End 2026.02.16 @ 21:24:24 Sessions 1 Manual Loads 0 Difficulty Adventurer Special Mode None Game No. 34 Rogue 17 Adventurer 17 Explorer 0 Win Type - Total 0 Types 0/0/0/0/0/0/0/0/0/0 Lore% 19 Gallery% 27 Achievement% 20 Wizard Run 0 Options --------- Layout 0 ASCII 0 Keyboard 0 Movement Numpad Keybinds 0 Fullscreen 1 Font 24/Terminus Map View 183x50 Zoom Use 0% Tactical HUD 1 Map Filters NONE Filters NONE Steam 1 RUN: 301f1db5-aeae-4c39-87e1-392e13ba544c